bitfinex-derivatives/quotes_SOLF0:USTF0_20250730
["timestamp","ask_amount","ask_price","bid_price","bid_amount"]
[1753880596114,3.02,177.84,177.8,0.94]
[1753880596910,5.6228,177.85,177.8,3.58581204]
[1753880597106,3.02,177.83,177.81,0.94]
[1753880597310,3.02,177.82,177.81,0.94]
[1753880597515,5.6224,177.86,177.81,0.94]
[1753880597717,3.02,177.85,177.82,5.6236]
[1753880598016,3.02,177.88,177.81,0.94]
[1753880598216,3.02,177.86,177.81,0.94]
[1753880598418,8.6425,177.86,177.81,6.5638]
[1753880598617,3.02,177.85,177.81,6.5638]
[1753880598916,3.02,177.88,177.82,3.58581204]
[1753880599116,3.02,177.86,177.82,3.58581204]
[1753880599611,3.02,177.86,177.82,9.20941204]
[1753880600011,3.02,177.86,177.82,10.14941204]
[1753880601219,3.02,177.85,177.82,3.58581204]
[1753880601412,3.58581204,177.9,177.82,3.58581204]
[1753880601607,3.02,177.88,177.82,3.58581204]
[1753880602319,5.6227,177.86,177.82,3.58581204]
[1753880602523,3.02,177.85,177.82,9.20951204]
[1753880603316,8.6431,177.85,177.82,3.58581204]
[1753880603620,3.02,177.84,177.78,4.52581204]
[1753880604217,3.02,177.82,177.78,4.52581204]
[1753880605321,3.02,177.82,177.79,5.6246]
[1753880606621,3.02,177.82,177.78,4.52581204]
[1753880606815,3.02,177.85,177.78,3.58581204]
[1753880607016,3.02,177.83,177.75,104.18]
[1753880607217,5.6252,177.78,177.75,104.18]
[1753880607419,3.31,177.77,177.75,104.18]
[1753880607617,3.31,177.8,177.75,107.76581204]
[1753880607821,3.31,177.8,177.79,0.95]
[1753880608221,3.31,177.8,177.78,5.6247]
[1753880608424,3.31,177.8,177.78,6.5747]
[1753880608633,3.31,177.8,177.78,0.95]
[1753880610221,3.58581204,177.86,177.77,3.58581204]
[1753880610413,3.31,177.79,177.75,104.18]
[1753880610618,3.58581204,177.84,177.75,108.71581204]
[1753880610819,3.31,177.78,177.75,108.71581204]
[1753880611027,5.6242,177.81,177.76,0.95]
[1753880611229,5.6242,177.81,177.75,107.76581204]
[1753880611230,3.31,177.76,177.75,107.76581204]
[1753880611419,3.31,177.76,177.75,113.39151204]
[1753880611923,3.31,177.78,177.76,5.6256]
[1753880612126,3.31,177.8,177.76,5.6256]
[1753880612326,3.31,177.8,177.75,108.71581204]
[1753880612622,3.31,177.8,177.79,5.6246]
[1753880614720,3.31,177.83,177.77,3.58581204]
[1753880614928,3.31,177.87,177.81,3.58581204]
[1753880615225,3.31,177.85,177.81,4.53581204]
[1753880615624,3.31,177.84,177.81,4.53581204]
[1753880615824,3.31,177.88,177.81,3.58581204]
[1753880616027,4.45714014,177.87,177.81,3.58581204]
[1753880616329,3.31,177.85,177.82,5.6235]
[1753880616526,3.31,177.85,177.79,3.58581204]
[1753880616721,5.6233,177.84,177.8,5.6243]
[1753880616925,5.6233,177.84,177.79,3.58581204]
[1753880616926,3.31,177.83,177.79,3.58581204]
[1753880617326,3.31,177.83,177.77,4.53581204]
[1753880617829,5.6237,177.82,177.78,5.6247]
[1753880618126,3.58581204,177.87,177.77,3.58581204]
[1753880618322,5.6226,177.86,177.82,5.6234]
[1753880618524,3.31,177.85,177.79,3.58581204]
[1753880619126,5.6235,177.83,177.79,9.21021204]
[1753880619327,3.31,177.82,177.77,3.58581204]
[1753880620321,3.31,177.81,177.78,5.6249]
[1753880620725,3.31,177.81,177.76,0.95]
[1753880620726,3.31,177.84,177.76,3.58581204]
[1753880620920,5.6244,177.8,177.76,9.21131204]
[1753880621122,3.31,177.79,177.75,104.18]
[1753880621933,3.31,177.79,177.75,105.13]
[1753880622122,3.31,177.78,177.75,104.18]
[1753880622328,3.31,177.78,177.71,351.05581204]
[1753880622635,3.31,177.78,177.71,346.52]
[1753880622932,3.31,177.75,177.72,5.6266]
[1753880623225,8.30040021,177.84,177.74,5.6262]
[1753880623418,3.31,177.78,177.74,5.6262]
[1753880623623,3.31,177.78,177.71,4.53581204]
[1753880623825,3.31,177.78,177.73,3.58581204]
[1753880624025,3.31,177.77,177.75,3.58581204]
[1753880624230,3.31,177.82,177.75,4.53581204]
[1753880624422,3.31,177.82,177.75,3.58581204]
[1753880624623,3.31,177.82,177.76,0.95]
[1753880624832,3.31,177.84,177.77,3.58581204]
[1753880625027,4.46470323,177.83,177.77,3.58581204]
[1753880625221,3.31,177.82,177.77,3.58581204]
[1753880625426,3.31,177.82,177.77,4.53581204]
[1753880625627,3.31,177.82,177.78,6.5748]
[1753880625828,3.31,177.82,177.78,0.95]
[1753880626029,3.31,177.84,177.78,0.95]
[1753880626228,3.31,177.82,177.8,0.95]
[1753880626425,4.71458817,177.88,177.79,3.58581204]
[1753880626628,3.31,177.85,177.83,5.6231]
[1753880626832,3.31,177.84,177.83,5.6231]
[1753880627538,6.28338567,177.91,177.81,3.58581204]
[1753880627539,3.31,177.88,177.84,5.6229]
[1753880627829,3.31,177.86,177.84,0.95]
[1753880628134,3.31,177.91,177.83,3.58581204]
[1753880628436,5.622,177.88,177.83,9.20911204]
[1753880628733,3.31,177.87,177.83,3.58581204]
[1753880629330,3.31,177.89,177.85,5.6227]
[1753880629634,3.31,177.87,177.85,6.5627]
[1753880630532,3.31,177.91,177.85,5.6227]
[1753880630735,9.09901161,177.9,177.85,5.6227]
[1753880631031,3.31,177.88,177.85,5.6227]
[1753880631226,3.58581204,177.92,177.84,5.623]
[1753880631431,3.31,177.85,177.84,5.623]
[1753880639339,3.31,177.85,177.83,9.20911204]
[1753880640036,3.31,177.85,177.84,5.6231]
[1753880640235,8.30040021,177.92,177.84,5.6231]
[1753880640236,4.71458817,177.92,177.84,5.6231]
[1753880640541,3.04,177.9,177.86,10.14791204]
[1753880640743,3.04,177.88,177.86,3.58581204]
[1753880640930,3.04,177.88,177.84,3.58581204]
[1753880641337,3.04,177.88,177.84,4.52581204]
[1753880641841,3.04,177.88,177.84,3.58581204]
[1753880642241,3.04,177.93,177.84,3.58581204]
[1753880642443,3.04,177.91,177.86,3.58581204]
[1753880642635,4.45931977,177.9,177.86,3.58581204]
[1753880642841,3.04,177.9,177.86,4.52581204]
[1753880643044,3.04,177.93,177.86,3.58581204]
[1753880643245,3.04,177.89,177.86,3.58581204]
[1753880643946,3.04,177.89,177.87,5.6219]
[1753880644338,3.58581204,177.94,177.86,3.58581204]
[1753880644541,3.04,177.92,177.86,4.52581204]
[1753880644748,3.04,177.9,177.86,4.52581204]
[1753880644948,3.04,177.93,177.86,3.58581204]
[1753880645244,3.04,177.91,177.88,5.6216]
[1753880646146,3.04,177.91,177.86,3.58581204]
[1753880646348,3.04,177.91,177.86,4.52581204]
[1753880646544,3.04,177.91,177.88,5.6218]
[1753880647050,3.04,177.91,177.86,4.52581204]
[1753880647250,3.04,177.9,177.87,5.6219]
[1753880647547,3.04,177.9,177.86,4.52581204]
[1753880647749,3.04,177.9,177.88,5.6216]
[1753880649952,8.6612,177.9,177.87,5.622]
[1753880650143,3.04,177.89,177.87,5.622]
[1753880651256,3.04,177.89,177.88,5.6218]
[1753880651457,3.04,177.89,177.86,3.58581204]
[1753880652352,3.04,177.89,177.84,4.52581204]
[1753880653054,3.04,177.89,177.87,5.6221]
[1753880655359,3.04,177.9,177.87,0.94]
[1753880655559,3.58581204,177.94,177.8,104.1]
[1753880655560,3.04,177.89,177.88,0.94]
[1753880655758,3.58581204,177.94,177.86,4.52581204]
[1753880655953,3.04,177.9,177.87,5.622]
[1753880656153,3.04,177.9,177.86,4.52581204]
[1753880656154,3.04,177.9,177.86,3.58581204]
[1753880656361,3.04,177.9,177.86,4.52581204]
[1753880656855,5.6205,177.92,177.86,3.58581204]
[1753880657057,3.04,177.91,177.86,3.58581204]
[1753880657359,3.04,177.91,177.89,5.6213]
[1753880657555,3.04,177.91,177.88,0.94]
[1753880657761,3.04,177.91,177.87,0.94]
[1753880659262,3.04,177.91,177.88,5.6217]
[1753880660262,3.04,177.91,177.89,5.6215]
[1753880661965,3.04,177.91,177.9,5.6212]
[1753880662162,5.6204,177.93,177.9,5.6212]
[1753880662362,3.04,177.92,177.91,5.6206]
[1753880662666,4.71458817,177.97,177.91,0.94]
[1753880662667,3.04,177.96,177.91,0.94]
[1753880662963,7.48863789,177.95,177.93,0.94]
[1753880663262,7.48863789,177.94,177.93,0.94]
[1753880663458,3.04,177.94,177.93,0.94]
[1753880663853,3.04,177.94,177.93,6.5602]
[1753880664056,3.04,177.94,177.93,5.6202]
[1753880664257,3.04,177.94,177.9,0.94]
[1753880664457,3.04,177.94,177.9,4.52581204]
[1753880665061,3.04,177.97,177.91,0.94]
[1753880666069,3.04,177.96,177.93,5.62]
[1753880668466,3.17,177.97,177.9,3.58581204]
[1753880668669,3.17,177.95,177.9,3.58581204]
[1753880669067,3.17,177.93,177.9,9.20681204]
[1753880669262,3.17,177.93,177.75,16.07896518]
[1753880669462,8.7911,177.91,177.88,5.6216]
[1753880669665,3.17,177.9,177.85,3.58581204]
[1753880669964,3.58581204,177.94,177.88,0.95]
[1753880669965,3.17,177.89,177.88,0.95]
[1753880670164,3.17,177.92,177.89,5.6214]
[1753880670763,3.17,177.91,177.88,6.5717]
[1753880670964,3.17,177.91,177.87,3.58581204]
[1753880671167,3.17,177.91,177.87,4.53581204]
[1753880671671,3.17,177.91,177.88,5.6215]
[1753880672268,3.17,177.91,177.89,5.6214]
[1753880673067,5.6206,177.92,177.89,5.6214]
[1753880673271,4.71458817,177.97,177.89,3.58581204]
[1753880673467,4.65784146,177.96,177.89,4.53581204]
[1753880673671,3.17,177.94,177.91,5.6206]
[1753880673971,3.17,177.92,177.91,5.6206]
[1753880674166,3.17,177.96,177.93,5.6202]
[1753880674372,3.17,177.94,177.92,0.95]
[1753880674673,3.17,177.92,177.91,9.20671204]
[1753880675073,3.17,177.97,177.91,3.58581204]
[1753880675267,3.17,177.95,177.91,3.58581204]
[1753880675472,3.17,177.95,177.92,0.95]
[1753880675673,3.17,177.95,177.93,0.95]
[1753880675877,3.17,177.95,177.94,5.6199]
[1753880676172,7.82746508,177.95,177.94,5.6199]
[1753880676372,3.17,177.95,177.94,5.6199]
[1753880676765,3.17,177.99,177.93,3.58581204]
[1753880676970,12.2690354,177.98,177.95,3.58581204]
[1753880677276,3.17,177.98,177.97,4.53581204]
[1753880677473,7.61030184,177.98,177.97,10.15471204]
[1753880677673,3.17,177.98,177.97,10.15471204]
[1753880677872,3.17,178.02,177.97,4.53581204]
[1753880678075,3.17,178.0,177.97,4.53581204]
[1753880678277,3.17,177.98,177.97,3.58581204]
[1753880678471,3.17,177.98,177.97,9.20471204]
[1753880682681,3.17,177.98,177.97,3.58581204]
[1753880684079,3.17,177.98,177.97,9.20481204]
[1753880684579,8.7889,177.98,177.94,9.20541204]
[1753880684772,3.17,177.98,177.92,3.58581204]
[1753880684973,3.17,177.98,177.9,3.58581204]
[1753880685178,3.17,177.96,177.88,3.58581204]
[1753880685378,3.17,177.94,177.88,3.58581204]
[1753880685578,5.6209,177.91,177.88,3.58581204]
[1753880685779,3.58581204,177.95,177.87,104.93]
[1753880686081,5.6204,177.93,177.89,5.6212]
[1753880686277,3.17,177.92,177.87,104.93]
[1753880686476,3.17,177.92,177.87,0.95]
[1753880686682,3.17,177.89,177.87,5.622]
[1753880686980,3.17,177.88,177.87,5.622]
[1753880687582,3.17,177.97,177.87,0.95]
[1753880687883,3.17,177.95,177.88,4.53581204]
[1753880688282,3.17,177.91,177.86,3.58581204]
[1753880688477,3.17,177.91,177.85,0.95]
[1753880689078,3.17,177.89,177.87,5.6219]
[1753880689281,3.17,177.87,177.67,141.44280713]
[1753880689473,3.17,177.82,177.74,3.58581204]
[1753880689677,3.17,177.82,177.74,0.95]
[1753880689872,3.17,177.8,177.72,107.56581204]
[1753880690078,3.17,177.8,177.72,108.51581204]
[1753880690675,3.17,177.8,177.67,124.8763657]
[1753880690676,3.17,177.75,177.67,124.8763657]
[1753880690876,3.17,177.73,177.66,347.23]
[1753880691178,3.17,177.72,177.69,5.6277]
[1753880691378,3.17,177.71,177.69,5.6277]
[1753880692283,3.17,177.73,177.67,0.95]
[1753880692481,5.6281,177.69,177.64,0.95]
[1753880692786,3.17,177.68,177.63,103.98]
[1753880693078,3.58581204,177.67,177.63,103.98]
[1753880693281,3.17,177.65,177.6,5.6304]
[1753880693493,3.58581204,177.65,177.58,104.02]
[1753880693780,3.17,177.62,177.58,104.02]
[1753880694181,3.17,177.61,177.58,104.02]
[1753880694380,3.58581204,177.65,177.58,109.6513]
[1753880694585,3.17,177.59,177.58,109.6513]
[1753880695280,3.17,177.59,177.58,104.02]
[1753880695476,3.17,177.6,177.53,104.96]
[1753880695883,3.17,177.6,177.55,5.6322]
[1753880696084,3.17,177.6,177.53,104.02]
[1753880697078,5.6307,177.6,177.53,104.02]
[1753880697285,3.2,177.59,177.53,104.02]
[1753880697682,9.06104519,177.59,177.53,104.02]
[1753880697878,3.2,177.58,177.53,109.6529]
[1753880698085,3.2,177.58,177.53,104.02]
[1753880698279,5.86104519,177.55,177.46,346.56]
[1753880698481,3.2,177.54,177.5,5.6338]
[1753880698676,3.2,177.52,177.34,11.2777]
[1753880698874,3.2,177.5,177.41,5.86104519]
[1753880699074,3.2,177.5,177.42,104.18]
[1753880699279,3.2,177.5,177.41,104.18]
[1753880699685,3.2,177.5,177.42,5.6361]
[1753880699982,3.2,177.46,177.41,104.18]
[1753880700281,3.2,177.46,177.4,5.86104519]
[1753880700492,3.2,177.51,177.42,5.86104519]
[1753880700683,3.2,177.51,177.44,5.86104519]
[1753880700882,3.2,177.51,177.42,5.86104519]
[1753880701084,5.6346,177.48,177.4,5.6368]
[1753880701388,5.86104519,177.46,177.37,5.86104519]
[1753880701588,3.2,177.45,177.35,111.19104519]
[1753880701888,3.2,177.43,177.33,346.7]
[1753880702190,8.8367,177.41,177.3,5.86104519]
[1753880702481,5.86104519,177.4,177.31,0.95]
[1753880702678,3.2,177.39,177.3,104.54]
[1753880702882,3.2,177.39,177.3,105.49]
[1753880703079,3.2,177.39,177.3,104.54]
[1753880703291,3.2,177.37,177.3,104.54]
[1753880703684,3.2,177.37,177.31,0.95]
[1753880703983,5.86104519,177.38,177.31,0.95]
[1753880704185,3.2,177.37,177.31,0.95]
[1753880704394,3.2,177.39,177.31,0.95]
[1753880704687,5.86104519,177.37,177.3,104.54]
[1753880704986,3.2,177.41,177.32,0.95]
[1753880705186,5.86104519,177.43,177.33,5.86104519]
[1753880705384,3.2,177.42,177.37,5.86104519]
[1753880705686,3.2,177.45,177.37,6.81104519]
[1753880705891,3.2,177.43,177.33,5.86104519]
[1753880706090,4.52361087,177.42,177.33,5.86104519]
[1753880706293,3.2,177.41,177.3,6.81104519]
[1753880706489,3.2,177.41,177.33,5.6392]
[1753880706689,5.86104519,177.38,177.3,0.95]
[1753880706887,3.2,177.35,177.22,346.84]
[1753880707095,5.86104519,177.32,177.25,0.95]
[1753880707393,3.2,177.31,177.25,0.95]
[1753880707587,3.2,177.31,177.22,353.65104519]
[1753880707783,5.86104519,177.3,177.2,110.98104519]
[1753880707990,8.8405,177.29,177.22,5.6425]
[1753880708191,3.2,177.26,177.22,5.6425]
[1753880708388,3.2,177.26,177.2,105.12]
[1753880708593,9.06104519,177.29,177.21,0.95]
[1753880708791,5.86104519,177.31,177.22,0.95]
[1753880708993,3.2,177.33,177.24,0.95]
[1753880709497,5.86104519,177.29,177.21,0.95]
[1753880709690,5.86104519,177.27,177.21,0.95]
[1753880709886,5.86104519,177.25,177.2,105.12]
[1753880710087,5.86104519,177.25,177.18,0.95]
[1753880710292,5.86104519,177.24,177.18,0.95]
[1753880710496,3.2,177.22,177.18,0.95]
[1753880710692,5.86104519,177.26,177.2,0.95]
[1753880710897,9.06104519,177.26,177.2,0.95]
[1753880711097,3.2,177.24,177.2,0.95]
[1753880711694,3.2,177.27,177.19,0.95]
[1753880711899,5.86104519,177.32,177.22,5.86104519]
[1753880712099,5.86104519,177.35,177.24,5.86104519]
[1753880712296,5.86104519,177.35,177.26,5.86104519]
[1753880712494,3.2,177.34,177.28,5.86104519]
[1753880712694,3.2,177.37,177.32,5.86104519]
[1753880712895,5.86104519,177.43,177.33,0.95]
[1753880713192,3.2,177.39,177.3,0.95]
[1753880713393,3.2,177.37,177.3,0.95]
[1753880713595,3.2,177.37,177.29,5.86104519]
[1753880713790,5.86104519,177.39,177.29,5.86104519]
[1753880713995,3.2,177.34,177.28,105.52]
[1753880714496,3.2,177.37,177.29,0.95]
[1753880714688,3.2,177.37,177.32,5.86104519]
[1753880714894,3.2,177.44,177.34,6.81104519]
[1753880715195,3.2,177.42,177.36,6.81104519]
[1753880715390,3.2,177.42,177.39,0.95]
[1753880715998,5.86104519,177.49,177.4,6.81104519]
[1753880716193,4.6619729,177.51,177.41,0.95]
[1753880716194,3.2,177.47,177.41,0.95]
[1753880716394,9.12897864,177.46,177.44,5.6357]
[1753880716595,4.50351765,177.45,177.44,5.6357]
[1753880717203,4.49886299,177.45,177.44,6.5857]
[1753880717498,3.2,177.48,177.44,6.5857]
[1753880717694,9.12125727,177.47,177.44,0.95]
[1753880717996,4.62239428,177.46,177.42,0.95]
[1753880718197,4.62239428,177.45,177.44,5.6357]
[1753880718396,4.62239428,177.45,177.44,6.5857]
[1753880718793,4.62239428,177.45,177.44,15.50366842]
[1753880719494,7.82239428,177.45,177.41,9.86796842]
[1753880719696,7.82239428,177.44,177.41,9.86796842]
[1753880719900,4.62239428,177.43,177.41,8.91796842]
[1753880720102,3.2,177.54,177.41,8.91796842]
[1753880720305,8.91796842,177.55,177.41,8.91796842]
[1753880720306,3.2,177.52,177.41,8.91796842]
[1753880720503,3.2,177.5,177.41,14.55456842]
[1753880720697,4.60642479,177.49,177.41,8.91796842]
[1753880720896,3.2,177.47,177.41,8.91796842]
[1753880721100,3.2,177.45,177.38,114.59796842]
[1753880721301,3.2,177.43,177.38,105.68]
[1753880721502,8.91796842,177.46,177.38,105.68]
[1753880721503,4.60636154,177.42,177.38,105.68]
[1753880721702,4.60636154,177.41,177.38,105.68]
[1753880721892,4.60636154,177.4,177.38,105.68]
[1753880722093,3.2,177.39,177.33,9.86796842]
[1753880722295,11.2652,177.54,177.3,115.62796842]
[1753880722296,3.2,177.37,177.3,115.62796842]
[1753880722602,3.2,177.37,177.3,114.67796842]
[1753880722797,3.2,177.34,177.3,114.67796842]
[1753880722997,3.2,177.34,177.3,115.62796842]
[1753880723597,3.2,177.34,177.31,0.95]
[1753880724304,3.2,177.39,177.3,114.67796842]
[1753880724503,3.2,177.34,177.28,0.95]
[1753880724704,3.2,177.34,177.27,8.91796842]
[1753880725101,3.2,177.32,177.27,8.91796842]
[1753880725404,3.2,177.32,177.26,453.06]
[1753880725599,8.91796842,177.37,177.26,453.06]
[1753880725600,5.639,177.34,177.26,458.7014]
[1753880725802,3.2,177.33,177.27,9.86796842]
[1753880726204,3.2,177.33,177.28,0.95]
[1753880726403,3.2,177.33,177.3,0.95]
[1753880726799,3.2,177.33,177.3,6.5902]
[1753880727004,3.2,177.36,177.31,0.95]
[1753880727205,5.6377,177.38,177.31,0.95]
[1753880727206,3.24,177.37,177.31,0.95]
[1753880727610,3.24,177.43,177.33,9.86796842]
[1753880727803,3.24,177.41,177.33,9.86796842]
[1753880728400,3.24,177.41,177.33,8.91796842]
[1753880728605,3.24,177.41,177.37,0.95]
[1753880729308,3.24,177.41,177.37,6.5879]
[1753880729710,3.24,177.44,177.37,5.6379]
[1753880729910,3.24,177.42,177.37,5.6379]
[1753880730213,3.24,177.4,177.37,5.6379]
[1753880730408,3.24,177.44,177.37,0.95]
[1753880730613,9.1959035,177.43,177.37,0.95]
[1753880730813,3.24,177.44,177.38,105.78]
[1753880731012,4.6619729,177.47,177.38,105.78]
[1753880731013,12.43510527,177.43,177.4,5.637]
[1753880731212,9.20243775,177.42,177.4,5.637]
[1753880731413,4.62069496,177.41,177.4,5.637]
[1753880731607,4.62069496,177.42,177.39,6.5873]
[1753880731913,4.62069496,177.41,177.39,6.5873]
[1753880732109,4.62069496,177.4,177.39,6.5873]
[1753880732512,4.62069496,177.4,177.36,0.95]
[1753880732719,3.24,177.38,177.36,105.72]
[1753880733010,4.62069496,177.37,177.36,112.3083]
[1753880733316,4.62069496,177.37,177.36,115.58796842]
[1753880733727,4.62069496,177.37,177.36,121.22626842]
[1753880734610,3.24,177.43,177.36,120.27796842]
[1753880734814,9.20025337,177.42,177.41,0.95]
[1753880735016,4.61524263,177.42,177.41,106.67]
[1753880735217,4.6619729,177.45,177.42,0.95]
[1753880735416,4.6619729,177.46,177.45,0.95]
[1753880735615,9.42507851,177.52,177.45,105.74]
[1753880735616,4.6619729,177.48,177.45,105.74]
[1753880735816,4.6619729,177.49,177.47,9.86796842]
[1753880736220,6.28338567,177.5,177.49,5.634]
[1753880736412,6.28338567,177.51,177.49,8.91796842]
[1753880736617,3.24,177.52,177.5,105.8]
[1753880736812,4.66440458,177.53,177.51,0.95]
[1753880737121,3.52194785,177.52,177.5,105.8]
[1753880737323,6.76194785,177.51,177.5,105.8]
[1753880737521,3.52194785,177.51,177.5,112.3839]
[1753880737720,3.52194785,177.51,177.5,106.75]
[1753880738118,3.52194785,177.51,177.5,112.3839]
[1753880738525,7.90440458,177.54,177.5,106.75]
[1753880738725,3.52169884,177.53,177.5,106.75]
[1753880738925,3.24,177.54,177.52,8.91796842]
[1753880739328,3.24,177.54,177.53,5.6329]
[1753880739621,3.24,177.53,177.52,8.91796842]
[1753880740820,3.24,177.53,177.52,5.86240542]
[1753880741420,3.24,177.53,177.5,5.86240542]
[1753880741622,3.24,177.53,177.48,5.86240542]
[1753880741924,3.24,177.57,177.5,5.86240542]
[1753880742125,3.52126221,177.56,177.5,11.49610542]
[1753880742421,3.52126221,177.55,177.5,5.86240542]
[1753880742622,5.6311,177.59,177.52,11.49540542]
[1753880742923,5.86240542,177.61,177.52,11.49540542]
[1753880742924,3.24,177.57,177.53,105.6]
[1753880743125,3.52102832,177.56,177.53,105.6]
[1753880743325,3.24,177.54,177.53,105.6]
[1753880743527,3.52102832,177.54,177.53,105.6]
[1753880743821,6.76102832,177.54,177.53,105.6]
[1753880744123,3.52102832,177.54,177.48,105.56]
[1753880744316,4.66440458,177.6,177.48,105.56]
[1753880744317,6.76102832,177.53,177.48,105.56]
[1753880744518,3.24,177.51,177.45,105.64]
[1753880744721,3.24,177.49,177.45,105.64]
[1753880744919,3.24,177.47,177.45,105.64]
[1753880745526,3.5225542,177.46,177.45,105.64]
[1753880745725,3.5225542,177.46,177.41,105.66]
[1753880746019,3.24,177.49,177.41,105.66]
[1753880746224,9.38507833,177.48,177.41,105.66]
[1753880746427,3.52267291,177.47,177.41,105.66]
[1753880746621,3.52267291,177.46,177.41,105.66]
[1753880746822,3.24,177.44,177.41,105.66]
[1753880747025,10.52681,177.52,177.41,105.66]
[1753880747229,3.24,177.43,177.42,5.6364]
[1753880747528,3.24,177.43,177.42,11.49880542]
[1753880747725,3.24,177.51,177.45,5.6352]
[1753880748025,3.24,177.49,177.46,5.86240542]
[1753880748323,3.24,177.47,177.45,105.72]
[1753880748536,3.24,177.45,177.43,105.74]
[1753880748826,3.24,177.49,177.43,111.376]
[1753880749023,3.24,177.47,177.43,105.74]
[1753880749225,3.24,177.53,177.43,105.74]
[1753880749430,3.24,177.51,177.43,105.74]
[1753880749624,3.24,177.49,177.46,5.86240542]
[1753880749829,3.24,177.55,177.47,105.76]
[1753880750122,3.24,177.53,177.47,105.76]
[1753880750428,3.24,177.5,177.47,105.76]
[1753880750622,5.86240542,177.57,177.47,105.76]
[1753880750824,3.24,177.51,177.48,12.44680542]
[1753880752029,3.24,177.54,177.5,6.81240542]
[1753880752225,3.24,177.54,177.51,105.72]
[1753880752424,3.24,177.54,177.52,5.6331]
[1753880752734,3.24,177.58,177.52,6.81240542]
[1753880752928,3.24,177.61,177.52,6.81240542]
[1753880753128,3.24,177.59,177.52,6.81240542]
[1753880753427,10.52681,177.63,177.53,0.95]
[1753880753633,3.24,177.58,177.57,5.6316]
[1753880754128,3.24,177.64,177.56,111.58240542]
[1753880754335,3.24,177.63,177.59,6.81240542]
[1753880754539,3.24,177.69,177.59,5.86240542]
[1753880754734,3.24,177.69,177.59,8.90002015]
[1753880755232,8.90002015,177.72,177.61,5.6301]
[1753880755434,3.24,177.64,177.59,9.85002015]
[1753880755633,3.24,177.63,177.59,8.90002015]
[1753880755829,3.24,177.63,177.61,5.6301]
[1753880756133,3.24,177.63,177.6,0.95]
[1753880756328,3.24,177.63,177.61,5.6304]
[1753880756536,3.24,177.71,177.61,105.74]
[1753880756831,3.24,177.71,177.63,0.95]
[1753880757237,3.03,177.7,177.63,0.95]
[1753880757732,3.03,177.7,177.65,5.6289]
[1753880757932,3.03,177.69,177.65,5.6289]
[1753880758133,3.03,177.68,177.65,5.6289]
[1753880758932,8.90002015,177.76,177.65,5.6289]
[1753880758933,3.03,177.67,177.65,5.6289]
[1753880759435,3.03,177.67,177.64,5.6293]
[1753880759831,8.90002015,177.73,177.62,8.90002015]
[1753880760031,3.03,177.72,177.62,8.90002015]
[1753880760335,3.03,177.72,177.61,105.64]
[1753880760533,8.90002015,177.67,177.56,8.90002015]
[1753880760727,3.03,177.66,177.56,5.632]
[1753880760929,8.90002015,177.67,177.55,106.64]
[1753880760930,3.03,177.63,177.55,106.64]
[1753880761128,3.03,177.63,177.56,8.90002015]
[1753880761333,5.6305,177.61,177.55,105.7]
[1753880761533,3.03,177.59,177.55,106.65]